bitfinex/quotes_SOLUSD_20240905
["timestamp","ask_amount","ask_price","bid_price","bid_amount"]
[1725567505181,7.7611,128.85,128.81,7.7633]
[1725567505483,7.7611,128.85,128.82,7.7625]
[1725567506567,7.7611,128.85,128.81,7.7631]
[1725567506791,7.7611,128.85,128.82,45.0]
[1725567507290,9.41973917,128.84,128.8,43.4513]
[1725567507581,7.7616,128.84,128.81,45.0]
[1725567507787,7.7622,128.83,128.8,43.4513]
[1725567510986,7.7622,128.83,128.79,6.628]
[1725567510987,7.7629,128.82,128.79,6.628]
[1725567511571,7.7629,128.82,128.78,7.7647]
[1725567511973,7.7639,128.8,128.77,42.2073]
[1725567512183,7.7636,128.81,128.77,42.2073]
[1725567512378,7.7651,128.78,128.77,15.0288]
[1725567512593,7.7648,128.79,128.77,15.0288]
[1725567512765,7.764,128.8,128.77,24.34737088]
[1725567513091,7.7635,128.81,128.77,24.34737088]
[1725567513288,20.0,128.8,128.77,24.34737088]
[1725567514166,20.0,128.8,128.78,52.765]
[1725567514383,20.0,128.81,128.78,52.765]
[1725567514600,20.0,128.81,128.79,1.55266695]
[1725567515375,20.0,128.81,128.78,52.765]
[1725567516275,1.35203156,128.8,128.78,52.765]
[1725567516774,1.35203156,128.8,128.78,45.0]
[1725567516976,7.7663,128.76,128.74,15.5416]
[1725567517181,22.42027073,128.8,128.74,15.5416]
[1725567517396,22.42027073,128.8,128.74,24.86214839]
[1725567517397,7.7655,128.78,128.74,24.86214839]
[1725567517600,20.0,128.77,128.74,24.86214839]
[1725567517874,20.0,128.77,128.75,1.5531639]
[1725567518079,20.0,128.77,128.74,23.3088]
[1725567518288,3.01017073,128.8,128.75,19.4173]
[1725567518499,1.35203156,128.8,128.78,7.7651]
[1725567518697,1.35203156,128.8,128.79,46.55268156]
[1725567518901,1.35203156,128.8,128.79,54.31718156]
[1725567519617,1.35203156,128.8,128.79,46.55268156]
[1725567520179,1.35203156,128.8,128.79,54.31718156]
[1725567520703,1.35203156,128.8,128.79,52.7645]
[1725567520912,21.65813917,128.86,128.79,52.7645]
[1725567521086,1.35187304,128.81,128.79,52.7645]
[1725567521291,7.7621,128.83,128.79,52.7645]
[1725567521490,21.65813917,128.86,128.8,8.71005299]
[1725567521684,1.35171696,128.81,128.8,7.7639]
[1725567521883,20.0,128.83,128.8,52.7639]
[1725567522195,20.0,128.83,128.79,78.648]
[1725567523516,20.0,128.83,128.8,7.7638]
[1725567523719,20.0,128.83,128.81,1.55243793]
[1725567524910,1.65813917,128.86,128.81,46.55243793]
[1725567525099,29.41883917,128.86,128.82,9.31454903]
[1725567525423,7.7609,128.85,128.81,72.1711]
[1725567526306,29.41973917,128.84,128.81,64.408]
[1725567526508,7.7616,128.84,128.81,64.408]
[1725567527512,9.41943917,128.85,128.81,72.1711]
[1725567527714,20.0,128.84,128.81,72.1711]
[1725567528623,20.0,128.84,128.82,9.31484806]
[1725567528826,3.00985503,128.87,128.84,7.761]
[1725567529001,21.65813917,128.89,128.84,7.761]
[1725567529202,21.65813917,128.89,128.84,1.55204447]
[1725567529510,1.65813917,128.91,128.87,7.7596]
[1725567529827,1.65813917,128.91,128.85,46.55187153]
[1725567529828,1.65813917,128.91,128.88,9.31061735]
[1725567530015,7.7574,128.91,128.88,1.55171735]
[1725567530323,7.7574,128.91,128.87,7.7596]
[1725567530905,7.758,128.9,128.86,42.5562]
[1725567531222,7.758,128.9,128.87,45.0]
[1725567532026,20.0,128.89,128.87,45.0]
[1725567532825,27.7585,128.89,128.87,45.0]
[1725567533024,27.7585,128.89,128.86,15.3954]
[1725567533615,27.7585,128.89,128.86,16.94713076]
[1725567534011,20.0,128.89,128.86,24.70733076]
[1725567534932,20.0,128.89,128.87,45.0]
[1725567535230,20.0,128.89,128.87,52.7597]
[1725567535405,20.0,128.9,128.87,52.7597]
[1725567536600,27.7579,128.9,128.87,52.7597]
[1725567537304,20.0,128.9,128.86,15.3954]
[1725567537506,9.41683917,128.89,128.86,15.3954]
[1725567537713,7.7587,128.89,128.86,15.3954]
[1725567538025,7.7587,128.89,128.87,45.0]
[1725567539332,7.7594,128.88,128.86,15.3954]
[1725567539507,7.7594,128.88,128.81,122.01537437]
[1725567539508,1.65813917,128.91,128.84,7.7614]
[1725567539709,21.65813917,128.91,128.84,7.7614]
[1725567540135,7.7593,128.88,128.84,7.7614]
[1725567540315,7.7589,128.89,128.85,9.31275868]
[1725567540511,7.7589,128.89,128.86,1.55182495]
[1725567540722,7.7579,128.9,128.86,27.1608]
[1725567540927,27.7586,128.89,128.86,72.1608]
[1725567541111,7.7586,128.89,128.86,72.1608]
[1725567541310,7.7586,128.89,128.87,1.55175652]
[1725567541706,7.7591,128.88,128.85,7.7607]
[1725567541931,7.7591,128.88,128.84,7.7613]
[1725567542127,7.7597,128.87,128.83,42.6348]
[1725567542314,9.41883917,128.86,128.82,6.4618]
[1725567542514,9.41883917,128.86,128.8,19.4085]
[1725567542515,7.7639,128.81,128.78,5.81260662]
[1725567542718,1.65813917,128.8,128.74,9.72466551]
[1725567542907,7.7641,128.8,128.76,7.766]
[1725567543305,7.7635,128.81,128.76,7.766]
[1725567543509,20.0,128.8,128.77,7.7657]
[1725567543723,29.42253917,128.8,128.75,7.7668]
[1725567543936,1.65813917,128.79,128.75,7.7668]
[1725567544107,9.42283917,128.79,128.75,7.7668]
[1725567544304,7.7647,128.79,128.75,7.7668]
[1725567544534,7.7641,128.8,128.75,7.7668]
[1725567544729,20.0,128.79,128.76,9.31630419]
[1725567545120,20.0,128.79,128.76,7.7663]
[1725567545433,20.0,128.79,128.75,7.7668]
[1725567545629,21.65813917,128.79,128.74,33.000005]
[1725567545815,1.65813917,128.78,128.73,15.7794]
[1725567546016,7.7668,128.76,128.73,15.7794]
[1725567546410,7.7659,128.77,128.74,1.55332212]
[1725567546611,20.0,128.76,128.73,15.7794]
[1725567547235,1.65813917,128.8,128.74,1.55342132]
[1725567547436,21.65813917,128.8,128.73,23.5474]
[1725567548336,7.7659,128.77,128.73,23.5474]
[1725567550338,7.7647,128.79,128.74,52.7675]
[1725567550642,20.0,128.78,128.74,52.7675]
[1725567550812,20.0,128.78,128.75,7.7669]
[1725567551018,9.42213917,128.8,128.76,52.7663]
[1725567551229,1.35240257,128.77,128.75,27.1839]
[1725567551613,20.0,128.78,128.75,27.1839]
[1725567551816,1.35246765,128.77,128.76,7.7663]
[1725567552014,1.35246765,128.77,128.75,27.1839]
[1725567554220,1.35246765,128.77,128.74,7.7673]
[1725567556130,1.35246765,128.77,128.73,15.7794]
[1725567556131,10.77640682,128.77,128.73,23.5474]
[1725567557938,1.35246765,128.77,128.74,65.97188513]
[1725567558335,1.35246765,128.77,128.74,73.73928513]
[1725567559437,9.11826765,128.77,128.74,72.186]
[1725567559851,1.65813917,128.76,128.73,23.5474]
[1725567560441,9.42443917,128.76,128.73,15.7794]
[1725567560838,10.77640682,128.77,128.73,23.5475]
[1725567561943,9.11826765,128.77,128.73,25.10085483]
[1725567562346,9.11826765,128.77,128.74,52.7675]
[1725567562656,9.11826765,128.77,128.74,54.32069219]
[1725567562853,1.35246765,128.77,128.74,54.32069219]
[1725567563059,1.35246765,128.77,128.74,52.7675]
[1725567563641,9.11826765,128.77,128.74,45.0]
[1725567565138,7.7658,128.77,128.74,45.0]
[1725567565850,20.0,128.78,128.73,23.5473]
[1725567565851,9.42463917,128.76,128.73,23.5473]
[1725567566158,7.7665,128.76,128.73,23.5473]
[1725567567157,7.7665,128.76,128.73,15.7794]
[1725567567859,1.65813917,128.77,128.73,15.7794]
[1725567568163,20.0,128.77,128.74,1.55335363]
[1725567568359,7.766,128.77,128.74,1.55335363]
[1725567568660,20.0,128.76,128.74,1.55335363]
[1725567568868,20.0,128.76,128.74,46.55335363]
[1725567570160,20.0,128.77,128.74,45.0]
[1725567570349,29.42423917,128.77,128.73,15.7794]
[1725567570663,27.7661,128.77,128.74,1.55334206]
[1725567570857,27.7661,128.77,128.74,46.55334206]
[1725567571044,27.7661,128.77,128.74,45.0]
[1725567574461,27.7661,128.77,128.73,15.7794]
[1725567574666,9.42463917,128.76,128.71,27.1925]
[1725567574963,9.42463917,128.76,128.7,29.2803]
[1725567574964,1.65813917,128.76,128.7,29.2803]
[1725567575149,7.768,128.74,128.7,21.5106]
[1725567575340,7.768,128.74,128.66,50.0]
[1725567575341,1.65813917,128.73,128.67,15.3654]
[1725567575543,19.4205,128.73,128.67,15.3654]
[1725567575770,7.7702,128.7,128.66,6.0604]
[1725567576067,7.7702,128.7,128.65,7.7729]
[1725567576253,7.7718,128.67,128.64,15.3654]
[1725567577466,7.7712,128.68,128.64,15.3654]
[1725567577656,20.0,128.67,128.65,45.0]
[1725567577969,20.0,128.67,128.62,13.8351]
[1725567578146,7.7737,128.64,128.61,0.8369896]
[1725567578347,7.7748,128.62,128.61,0.8369896]
[1725567578546,27.7748,128.62,128.61,0.8369896]
[1725567583854,7.7779,128.57,128.52,25.939]
[1725567584083,9.43663917,128.56,128.52,25.939]
[1725567584266,1.65813917,128.55,128.52,19.4513]
[1725567584453,27.81803917,128.6,128.52,19.4513]
[1725567585084,7.7782,128.57,128.52,27.2319]
[1725567585260,9.43653917,128.56,128.52,19.4513]
[1725567585464,1.65813917,128.55,128.52,19.4513]
[1725567587564,1.65813917,128.55,128.48,0.8369896]
[1725567587565,7.7827,128.49,128.48,0.8369896]
[1725567588175,27.7827,128.49,128.48,0.8369896]
[1725567589448,20.0,128.49,128.48,0.8369896]
[1725567591468,9.1357,128.52,128.48,8.6200896]
[1725567591469,3.01293917,128.52,128.48,8.6200896]
[1725567591694,1.3548,128.52,128.48,8.6200896]
[1725567591873,21.3548,128.52,128.48,8.6200896]
[1725567592057,23.01293917,128.52,128.48,8.6200896]
[1725567592374,1.65813917,128.51,128.48,0.8369896]
[1725567592784,0.5180104,128.48,128.47,26.0493]
[1725567592953,0.5180104,128.48,128.47,19.4588]
[1725567593853,0.5180104,128.48,128.47,27.2427]
[1725567594874,0.5180104,128.48,128.47,88.527]
[1725567597874,20.0,128.54,128.5,7.782]
[1725567598088,1.65813917,128.53,128.5,7.782]
[1725567599292,1.65813917,128.53,128.49,7.7825]
[1725567600088,20.0,128.54,128.5,7.7817]
[1725567600267,21.65813917,128.54,128.5,7.7817]
[1725567601195,29.43773917,128.54,128.5,7.7817]
[1725567602674,20.0,128.54,128.51,7.7812]
[1725567602878,21.65813917,128.54,128.5,7.7819]
[1725567603278,7.7803,128.53,128.49,19.4558]
[1725567603476,21.65813917,128.52,128.49,19.4558]
[1725567603981,21.65813917,128.52,128.48,7.7832]
[1725567603982,1.65813917,128.51,128.48,7.7832]
[1725567606096,1.65813917,128.55,128.5,7.7816]
[1725567606274,9.43763917,128.55,128.5,7.7816]
[1725567606676,9.43763917,128.55,128.51,7.7814]
[1725567606871,7.7785,128.56,128.52,7.7808]
[1725567607187,12.60349169,128.57,128.53,7.7799]
[1725567607378,1.65813917,128.57,128.52,19.452]
[1725567607577,1.65813917,128.57,128.5,6.0117]
[1725567607578,7.7766,128.59,128.55,7.7789]
[1725567607907,1.65813917,128.6,128.56,7.7784]
[1725567607908,9.43423917,128.6,128.56,7.7784]
[1725567608192,9.43363917,128.61,128.56,19.4455]
[1725567608675,7.7755,128.61,128.57,45.0]
[1725567609008,7.7755,128.61,128.56,27.2237]
[1725567609294,1.65813917,128.6,128.57,45.0]
[1725567609481,7.7755,128.61,128.57,45.0]
[1725567609685,7.7749,128.62,128.57,52.7776]
[1725567609881,9.43253917,128.63,128.58,9.33224929]
[1725567610085,1.65813917,128.63,128.59,9.33159514]
[1725567610290,6.2112,128.66,128.6,45.0]
[1725567610489,9.43123917,128.65,128.61,1.55488623]
[1725567610972,7.7731,128.65,128.61,1.55488623]
[1725567611476,7.7731,128.65,128.61,9.33028623]
[1725567611986,1.65813917,128.67,128.61,7.7754]
[1725567611987,7.7726,128.66,128.61,7.7754]
[1725567612301,7.7726,128.66,128.62,45.0]
[1725567612795,9.43153917,128.65,128.61,45.0]
[1725567613098,7.7739,128.64,128.61,45.0]
[1725567614096,7.7739,128.64,128.61,44.76624239]
[1725567614469,1.65813917,128.67,128.61,44.76624239]
[1725567614782,1.35368049,128.63,128.62,9.32947068]
[1725567614992,20.0,128.65,128.62,9.32947068]
[1725567615188,1.35361424,128.64,128.62,9.32947068]
[1725567615389,1.35361424,128.64,128.61,67.71604239]
[1725567615705,9.12721424,128.64,128.61,59.94084239]
[1725567616274,1.35361424,128.64,128.62,8.10471738]
[1725567616600,7.7732,128.65,128.63,45.0]
[1725567616775,7.7732,128.65,128.64,1.55455394]
[1725567616978,27.7732,128.65,128.63,45.0]
[1725567617171,7.7726,128.66,128.63,44.71584323]
[1725567617398,20.0,128.65,128.64,1.55456211]
[1725567617776,20.0,128.65,128.63,44.71584323]
[1725567618179,3.01171772,128.68,128.63,52.48974323]
[1725567618389,7.7722,128.67,128.63,52.48974323]
[1725567618587,27.7727,128.66,128.63,44.71584323]
[1725567622107,7.7731,128.65,128.63,44.71584323]
[1725567622908,7.7736,128.64,128.63,44.71584323]
[1725567623500,7.7732,128.65,128.63,44.71584323]
[1725567624598,7.7732,128.65,128.63,46.27035693]
[1725567624982,7.7732,128.65,128.63,44.71584323]
[1725567625705,7.7736,128.64,128.63,44.71584323]
[1725567625904,1.65813917,128.65,128.61,15.1746]
[1725567626406,7.7745,128.63,128.61,15.1746]
[1725567629295,7.7738,128.64,128.62,45.0]
[1725567629609,7.7734,128.65,128.62,46.55466877]
[1725567631740,20.0,128.66,128.62,45.0]
[1725567631741,7.7737,128.64,128.62,45.0]
[1725567633811,7.7742,128.63,128.62,45.0]
[1725567634013,7.7755,128.61,128.59,6.3251]
[1725567634220,20.0,128.63,128.58,15.4247]
[1725567634518,7.7766,128.59,128.58,15.4247]
[1725567635519,7.776,128.6,128.58,15.4247]
[1725567635722,7.775,128.62,128.58,23.2018]
[1725567635898,19.4339,128.65,128.59,9.33142779]
[1725567635899,7.7746,128.63,128.59,9.33142779]
[1725567636101,7.7739,128.64,128.6,7.776]
[1725567636422,20.0,128.63,128.6,7.776]
[1725567636809,20.0,128.63,128.61,45.0]
[1725567637213,21.35384612,128.63,128.61,45.0]
[1725567637617,1.35384612,128.63,128.62,7.7748]
[1725567637803,1.35384612,128.63,128.62,52.7748]
[1725567639302,1.35384612,128.63,128.62,45.0]
[1725567641217,7.7736,128.64,128.62,45.0]
[1725567641902,7.7732,128.65,128.62,45.0]
[1725567642514,7.7736,128.64,128.62,45.0]
[1725567642715,7.7748,128.62,128.59,19.4415]
[1725567642928,7.7755,128.61,128.58,23.2018]
[1725567643225,7.7755,128.61,128.58,15.4247]
[1725567643816,19.434,128.65,128.59,1.55501591]
[1725567644012,20.0,128.64,128.6,19.44]
[1725567644327,7.7732,128.65,128.61,9.32999815]
[1725567644910,7.7732,128.65,128.62,45.0]
[1725567645328,1.65813917,128.65,128.6,27.2157]
[1725567645506,1.35378715,128.66,128.61,45.0]
[1725567646410,7.7742,128.63,128.61,45.0]
[1725567647727,7.7738,128.64,128.61,45.0]
[1725567649312,7.7732,128.65,128.62,1.55475308]
[1725567649529,1.35378715,128.66,128.63,7.7741]
[1725567649725,1.35378715,128.66,128.64,45.0]
[1725567649906,1.65813917,128.7,128.65,1.55416383]
[1725567650113,1.35326462,128.71,128.65,1.55416383]
[1725567650314,7.7706,128.69,128.65,9.32696383]
[1725567650512,7.7706,128.69,128.66,45.0]
[1725567650725,7.7706,128.69,128.67,1.55414524]
[1725567651129,20.0,128.68,128.66,45.0]
[1725567651635,7.7702,128.7,128.67,9.32592729]
[1725567651825,14.2309,128.74,128.68,46.55392825]
[1725567651826,7.7713,128.74,128.68,46.55392825]
[1725567652142,7.7683,128.73,128.69,7.77]
[1725567652436,9.12047727,128.74,128.7,54.3235181]
[1725567652630,9.12047727,128.74,128.71,1.55361177]
[1725567652821,7.7676,128.74,128.71,1.5536126]
[1725567653017,7.7676,128.74,128.7,52.7699]
[1725567653221,7.7682,128.73,128.7,45.0]
[1725567653637,7.7688,128.72,128.69,25.876]
[1725567654212,7.768,128.74,128.69,33.6466]
[1725567654520,7.768,128.74,128.7,52.7699]
[1725567654823,20.0,128.73,128.7,52.7699]
[1725567655015,20.0,128.73,128.7,45.0]
[1725567655211,7.7689,128.72,128.7,45.0]
[1725567656233,27.7684,128.73,128.7,45.0]
[1725567657430,20.0,128.73,128.7,45.0]
[1725567657635,20.0,128.73,128.7,52.7698]
[1725567657815,20.0,128.73,128.7,69.2914]
[1725567659452,20.0,128.73,128.71,1.55352586]
[1725567659615,1.35280337,128.76,128.71,1.55352586]
[1725567660014,7.7667,128.76,128.72,7.7683]
[1725567660223,7.7667,128.76,128.73,54.32130359]
[1725567660427,3.01063416,128.79,128.74,9.32067892]
[1725567660629,7.7657,128.77,128.73,52.768]
[1725567661010,3.01063416,128.79,128.73,45.0]
[1725567661011,7.7664,128.76,128.73,45.0]
[1725567661207,7.767,128.75,128.73,45.0]
[1725567661412,3.01063416,128.79,128.7,16.5216]
[1725567661708,7.7686,128.73,128.7,16.5216]
[1725567662936,7.7689,128.72,128.7,16.5216]
[1725567663636,19.4193,128.74,128.67,16.3089]
[1725567663819,21.65813917,128.73,128.67,16.3089]
[1725567664021,7.7702,128.7,128.67,16.3089]
[1725567665216,7.7706,128.69,128.67,16.3089]
[1725567665625,7.7702,128.7,128.67,16.3089]
[1725567666035,7.7702,128.7,128.68,1.55404106]
[1725567666769,7.7696,128.71,128.68,46.55404106]
[1725567667039,7.7696,128.71,128.68,54.32514106]
[1725567667241,7.7689,128.72,128.68,52.7711]
[1725567667424,20.0,128.73,128.68,45.0]
[1725567667626,20.0,128.73,128.69,20.979965]
[1725567667935,7.7681,128.74,128.7,45.0]
[1725567668134,7.7681,128.74,128.71,1.55354432]
[1725567669128,20.0,128.73,128.71,1.55354432]
[1725567670134,21.65813917,128.73,128.67,16.3089]
[1725567670430,7.7702,128.7,128.67,16.3089]
[1725567671533,7.7702,128.7,128.68,45.0]
[1725567674358,7.7706,128.69,128.67,16.3089]
[1725567674736,7.7712,128.68,128.67,16.3089]
[1725567674945,1.65813917,128.73,128.67,16.3089]
[1725567675151,7.7691,128.72,128.68,7.7708]
[1725567675354,7.7691,128.72,128.69,7.7705]
[1725567675660,7.7676,128.74,128.7,9.32349045]
[1725567675960,7.7676,128.74,128.71,1.55351324]
[1725567676169,7.7676,128.74,128.71,46.55351324]
[1725567676467,7.7671,128.75,128.72,1.55351307]
[1725567676961,27.7676,128.74,128.71,45.0]
[1725567677267,7.7683,128.73,128.71,45.0]
[1725567677449,7.7683,128.73,128.7,45.0]
[1725567678060,27.7678,128.74,128.7,52.7699]
[1725567678943,7.7682,128.73,128.7,52.7699]
[1725567679151,7.7682,128.73,128.7,45.0]
[1725567679463,7.7682,128.73,128.7,52.7699]
[1725567679854,27.7677,128.74,128.7,52.7699]
[1725567681165,3.01111532,128.77,128.71,19.4233]
[1725567681457,1.65813917,128.78,128.72,45.0]
[1725567681659,23.01100738,128.8,128.73,1.55320828]
[1725567681964,23.01100738,128.8,128.72,45.0]
[1725567681965,1.65813917,128.79,128.72,45.0]
[1725567682147,3.01100738,128.8,128.73,35.1211]
[1725567682461,7.7653,128.78,128.74,52.7671]
[1725567683337,26.46822396,128.81,128.74,45.0]
[1725567683858,7.7658,128.77,128.74,52.7675]
[1725567685361,7.7658,128.77,128.74,45.0]
[1725567685967,7.7658,128.77,128.74,52.7675]
[1725567686868,7.7653,128.78,128.74,52.7675]
[1725567687073,5.40038479,128.81,128.75,20.97012108]
[1725567687364,5.40038479,128.81,128.76,45.0]
[1725567687566,5.40038479,128.81,128.8,7.7639]
[1725567687778,4.04785716,128.81,128.79,16.1575]
[1725567687943,8.6008896,128.81,128.79,16.1575]
[1725567688144,8.6008896,128.81,128.76,45.0]
[1725567688145,2.18846996,128.81,128.76,45.0]
[1725567688549,2.18846996,128.81,128.75,16.1575]
[1725567688745,7.7655,128.78,128.75,16.1575]
[1725567688941,7.7658,128.77,128.75,16.1575]
[1725567689246,21.59706996,128.81,128.72,16.5119]
[1725567689247,7.7672,128.75,128.72,16.5119]
[1725567690262,7.7666,128.76,128.72,24.2806]
[1725567690671,20.0,128.75,128.73,45.0]
[1725567692546,7.7658,128.77,128.74,7.7672]
[1725567692864,20.0,128.76,128.75,45.0]
[1725567693370,20.0,128.76,128.74,45.0]
[1725567695156,27.7664,128.76,128.74,45.0]
[1725567696552,20.0,128.76,128.74,45.0]
[1725567698870,20.0,128.76,128.74,52.7675]
[1725567699053,7.7649,128.79,128.75,7.7666]
[1725567699276,2.18846996,128.81,128.76,45.0]
[1725567699566,7.7641,128.8,128.76,64.4155]
[1725567699749,7.7641,128.8,128.76,72.1815]
[1725567701271,20.0,128.79,128.76,72.1815]
[1725567701790,7.7646,128.79,128.76,72.1815]
[1725567702571,7.764,128.8,128.77,7.7656]
[1725567702774,7.764,128.8,128.78,45.0]
[1725567702964,20.0,128.79,128.78,45.0]
[1725567703362,20.0,128.79,128.77,45.0]
[1725567704167,20.0,128.79,128.77,58.8246]
[1725567704366,20.0,128.8,128.78,16.0436]
[1725567704550,27.7639,128.8,128.78,16.0436]
[1725567705762,27.7639,128.8,128.79,45.0]
[1725567707453,7.7664,128.76,128.74,16.5589]
[1725567707775,7.7654,128.78,128.74,24.3264]
[1725567708278,7.7649,128.79,128.75,7.7669]
[1725567708684,9.11700079,128.79,128.75,7.7669]
[1725567708855,9.11700079,128.79,128.76,45.0]
[1725567709188,7.7652,128.78,128.76,45.0]
[1725567709482,9.11680079,128.79,128.76,45.0]
[1725567710684,9.06945536,128.79,128.76,45.0]
[1725567710882,1.30475536,128.79,128.76,45.0]
[1725567711193,1.30475536,128.79,128.77,1.55278672]
[1725567711482,21.30475536,128.79,128.77,1.55278672]
[1725567711686,1.30475536,128.79,128.77,20.96708672]
[1725567711887,1.30475536,128.79,128.78,46.55261306]
[1725567712090,1.30475536,128.79,128.78,45.0]
[1725567713187,7.85247642,128.81,128.78,45.0]
[1725567715979,7.85247642,128.81,128.74,35.9765]
[1725567715980,0.08907642,128.81,128.74,35.9765]
[1725567716810,7.7649,128.79,128.75,7.7664]
[1725567717361,0.08907642,128.81,128.74,35.9765]
[1725567717691,0.08907642,128.81,128.74,16.5589]
[1725567718269,7.7659,128.77,128.74,16.5589]
[1725567718978,7.7659,128.77,128.75,45.0]
[1725567719686,7.7653,128.78,128.75,45.0]
[1725567719884,20.0,128.77,128.75,45.0]
[1725567720394,20.0,128.77,128.75,52.7668]
[1725567722276,7.7648,128.79,128.76,7.7662]
[1725567722476,7.7648,128.79,128.77,45.0]
[1725567722969,0.08907642,128.81,128.77,45.0]
[1725567723175,0.08907642,128.81,128.78,7.7647]
[1725567723388,0.08907642,128.81,128.79,45.0]
[1725567723690,7.85257642,128.81,128.79,45.0]
[1725567723868,7.85257642,128.81,128.78,45.0]
[1725567724068,7.7643,128.8,128.77,19.4131]
[1725567724480,7.85257642,128.81,128.78,1.55282483]
[1725567724677,7.85257642,128.81,128.78,45.0]
[1725567724895,0.08907642,128.81,128.78,52.765]
[1725567725069,0.08907642,128.81,128.79,1.55248426]
[1725567725271,0.08907642,128.81,128.78,52.765]
[1725567725482,20.08907642,128.81,128.78,52.765]
[1725567725699,20.08907642,128.81,128.79,1.55254352]
[1725567725881,20.08907642,128.81,128.78,52.765]
[1725567726687,20.08907642,128.81,128.79,1.552567]
[1725567726892,0.08907642,128.81,128.8,15.9751]
[1725567727074,0.08907642,128.81,128.8,70.29127734]
[1725567727798,0.08907642,128.81,128.8,60.9751]
[1725567728106,0.08907642,128.81,128.78,19.4116]
[1725567728278,7.85277642,128.81,128.79,45.0]
[1725567728472,7.7639,128.8,128.77,7.7654]
[1725567729780,7.7639,128.8,128.78,45.0]
[1725567730380,7.7639,128.8,128.77,45.0]
[1725567731779,7.765,128.79,128.77,45.0]
[1725567734486,7.7643,128.8,128.77,45.0]
[1725567734686,20.0,128.79,128.77,45.0]
[1725567735596,0.08907642,128.81,128.78,7.7651]
[1725567735804,0.08907642,128.81,128.79,46.55250906]
[1725567736116,0.08907642,128.81,128.8,1.55252647]
[1725567736293,0.08907642,128.81,128.8,7.7639]
[1725567736606,0.08907642,128.81,128.8,52.7639]
[1725567736822,0.08907642,128.81,128.8,45.0]
[1725567737511,0.08907642,128.81,128.76,74.5471]
[1725567737688,0.08907642,128.81,128.76,35.7163]
[1725567738193,7.7648,128.79,128.76,16.3015]
[1725567738400,0.08907642,128.81,128.74,27.1849]
[1725567738401,7.7653,128.78,128.74,27.1849]
[1725567738705,7.7653,128.78,128.75,5.81539292]
[1725567739003,7.7694,128.71,128.67,7.7713]
[1725567739202,1.65813917,128.75,128.68,5.8186092]
[1725567739404,7.7699,128.71,128.66,23.5577]
[1725567739578,7.7699,128.71,128.67,5.81900796]
[1725567739777,7.7699,128.71,128.66,23.5577]
[1725567740014,7.7699,128.71,128.67,7.7718]
[1725567740802,7.7699,128.71,128.68,45.0]
[1725567741209,7.7699,128.71,128.67,7.7718]
[1725567741397,1.65813917,128.75,128.67,19.4291]
[1725567741700,21.65813917,128.75,128.67,19.4291]
[1725567742079,7.7692,128.72,128.67,27.2007]
[1725567742279,20.0,128.71,128.67,27.2007]
[1725567742682,20.0,128.71,128.68,52.7709]
[1725567742884,20.0,128.71,128.68,45.0]
[1725567744786,1.65813917,128.75,128.68,95.0]
[1725567744991,1.65813917,128.75,128.69,20.97958631]
[1725567744992,7.7675,128.75,128.69,20.97958631]
[1725567745296,27.7676,128.74,128.7,52.7696]
[1725567745916,7.7682,128.73,128.7,45.0]
[1725567746212,7.77,128.7,128.66,42.9875]
[1725567746712,7.7696,128.71,128.67,7.7717]
[1725567747697,7.7696,128.71,128.68,45.0]
[1725567748013,3.01084194,128.73,128.68,52.7712]
[1725567748014,7.769,128.72,128.68,52.7712]
[1725567748185,20.0,128.71,128.68,52.7712]
[1725567748589,27.7694,128.71,128.68,45.0]
[1725567751307,20.0,128.71,128.68,52.7711]
[1725567751847,9.12100277,128.73,128.68,64.4279]